fUSD/lending_fUSD_20250522
["ID","MTS","AMOUNT","RATE_DAILY","PERIOD"]
[361911754,1747885833179,-500.0,0.00011999,2]
[361911755,1747885833189,-500.0,0.00011999,2]
[361911756,1747885833200,-500.0,0.00011999,2]
[361911757,1747885833210,-373.74289271,0.00011999,2]
[361911758,1747885833225,-500.0,0.00011999,2]
[361911759,1747885833235,-500.0,0.00011999,2]
[361911760,1747885833246,-500.0,0.00011999,2]
[361911761,1747885833256,-500.0,0.00011999,2]
[361911762,1747885833267,-344.65358552,0.00011999,2]
[361911763,1747885833277,-500.0,0.00011999,2]
[361911764,1747885833287,-332.11172243,0.00012,2]
[361911765,1747885833329,-1168.0682,0.00012,2]
[361911766,1747885833390,-1318.15,0.00012,2]
[361911767,1747885833403,-118127.85569734,0.00012,2]
[361911768,1747885833415,-601.725,0.00012,2]
[361911769,1747885833428,-517.992,0.00012,2]
[361911770,1747885833488,-857.98047029,0.00012,2]
[361911771,1747885833500,-2917.50301838,0.00012,2]
[361911772,1747885837191,10800.0,0.000112,2]
[361911834,1747885839077,-162.02549621,0.000119,2]
[361911836,1747885839087,-6467.67843032,0.00012,2]
[361911841,1747885839131,-264.4450012,0.00012,2]
[361911843,1747885839143,-256.94,0.00012,2]
[361911845,1747885839155,-30405.24772132,0.00012,2]
[361911847,1747885839167,-379.75986534,0.00012,2]
[361911853,1747885839217,-448.13726371,0.00012,2]
[361911859,1747885839274,-1520.0,0.00012,2]
[361911862,1747885839286,-5116.73020186,0.00012,2]
[361911866,1747885839324,-2633.49999999,0.00012,2]
[361911869,1747885839336,-1314.44414864,0.00012,2]
[361911871,1747885839346,-624.97716636,0.00012,2]
[361911873,1747885839357,-1645.61014,0.00012,2]
[361912011,1747885840548,-971.47748336,0.00012,2]
[361912013,1747885840562,-10342.85860827,0.00012,2]
[361912017,1747885840592,-1792.4000004,0.00012,2]
[361912030,1747885840684,-25924.90608639,0.00012,2]
[361912033,1747885840697,-2410.12389795,0.00012,2]
[361912035,1747885840710,-30422.12563588,0.00012,2]
[361912038,1747885840726,-16225.88999999,0.00012,2]
[361912042,1747885840738,-7770.11479992,0.00012,2]
[361912051,1747885840792,-1118.85189328,0.00012,2]
[361912054,1747885840805,-524.34196823,0.00012,2]
[361912063,1747885840885,-10862.998694,0.00012,2]
[361912065,1747885840897,-39511.67844156,0.00012,2]
[361912309,1747885843338,-748.41210578,0.00012,2]
[361912319,1747885843393,-1858.779066,0.00012,2]
[361912321,1747885843404,-693.05669786,0.00012,2]
[361912323,1747885843416,-36646.08423528,0.00012,2]
[361912328,1747885843451,-336.90728298,0.00012,2]
[361912330,1747885843462,-2650.86294906,0.00012,2]
[361912332,1747885843474,-106283.74770646,0.00012,2]
[361912347,1747885843600,-1392.25916551,0.00012,2]
[361912351,1747885843638,-3301.09141369,0.00012,2]
[361912355,1747885843666,-1000.0,0.00012,2]
[361912565,1747885846198,-387.36708355,0.000119,2]
[361912576,1747885846308,-35.69303403,0.000119,2]
[361912578,1747885846319,-1536.30696597,0.00012,2]
[361912581,1747885846331,-264.14718522,0.00012,2]
[361912583,1747885846343,-1144.90926115,0.00012,2]
[361912585,1747885846355,-345.02395189,0.00012,2]
[361912587,1747885846367,-1304.04259778,0.00012,2]
[361912596,1747885846440,-1836.04690002,0.00012,2]
[361912598,1747885846452,-38218.19077361,0.00012,2]
[361912600,1747885846464,-1640.98266987,0.00012,2]
[361912608,1747885846524,-386625.47781089,0.00012,2]
[361912610,1747885846537,-37804.5409512,0.00012,2]
[361912613,1747885846562,-4075.78619172,0.00012,2]
[361912620,1747885846614,-16207.03218243,0.00012,2]
[361912626,1747885846664,-141962.0092996,0.00012,2]
[361912879,1747886078636,150.0,0.00012,5]
[361912880,1747886213636,250.0,0.00011131,2]
[361912881,1747886411791,207.0,0.00010924,2]
[361912882,1747886437000,802.75,9.199e-05,2]
[361912883,1747886437189,802.75,0.00011463,2]
[361912884,1747886469423,23900.0,0.00011021,2]
[361912885,1747886557262,150.0,0.00010985,7]
[361912886,1747886600270,200.0,0.00010959,2]
[361912887,1747886653087,167.26,0.00011314,2]
[361912888,1747886677511,1500.0,0.00010984,2]
[361912889,1747886706288,1704.523239,0.00011449,2]
[361912890,1747886744349,524.65,0.00010973,2]
[361912895,1747886838275,1000.0,0.00010968,2]
[361912914,1747887031451,-184.21011712,0.00011498,2]
[361912915,1747887031464,-250.0,0.00011502,2]
[361912916,1747887031474,-74.07494202,0.00011507,2]
[361912917,1747887031486,-2676.92505798,0.00011507,2]
[361912918,1747887031496,-250.0,0.00011566,2]
[361912919,1747887031505,-207.4,0.00011573,2]
[361912920,1747887031514,-852.39346816,0.00011642,2]
[361912921,1747887031523,-357.15,0.00011694,2]
[361912922,1747887031533,-200.0,0.00011698,2]
[361912923,1747887031542,-9.91585157,0.00011702,2]
[361912924,1747887031579,-190.08414843,0.00011702,2]
[361912925,1747887031589,-146.11254261,0.00011738,2]
[361912926,1747887031615,-53.88745739,0.00011738,2]
[361912927,1747887031626,-273.369781,0.0001176,2]
[361912928,1747887031635,-502.0,0.00011836,2]
[361912929,1747887031645,-538.70761972,0.00011872,2]
[361912930,1747887031656,-661.29238028,0.00011872,2]
[361912931,1747887031666,-629.09011141,0.00011873,2]
[361912932,1747887031675,-200.0,0.00011873,2]
[361912933,1747887031685,-340.13643418,0.00011873,2]
[361912934,1747887031696,-370.55662671,0.00011873,2]
[361912935,1747887031706,-11855.00921836,0.0001188,2]
[361912936,1747887031715,-177.64829075,0.00011892,2]
[361912937,1747887031724,-322.37306756,0.00011899,2]
[361912938,1747887031734,-6079.3593,0.000119,2]
[361912939,1747887031743,-226.9465,0.000119,2]
[361912940,1747887031752,-2075.3928,0.000119,2]
[361912941,1747887031761,-3943.3763,0.000119,2]
[361912942,1747887031771,-688.3208,0.000119,2]
[361912943,1747887031780,-198.46940763,0.000119,2]
[361912944,1747887031789,-1000.0,0.000119,2]
[361912945,1747887031798,-2500.0,0.000119,2]
[361912946,1747887031807,-29320.72317354,0.000119,2]
[361912947,1747887031819,-2583.09280796,0.000119,2]
[361912948,1747887031830,-549.0,0.000119,2]
[361912949,1747887031842,-3496.1702185,0.000119,2]
[361912950,1747887031851,-1000.0,0.000119,2]
[361912951,1747887031860,-359.13621412,0.000119,2]
[361912952,1747887031869,-206953.1127,0.000119,2]
[361912953,1747887031879,-515.60552871,0.000119,2]
[361912954,1747887031888,-493.57013716,0.000119,2]
[361912955,1747887031898,-209.38646622,0.000119,2]
[361912956,1747887031907,-175.34201323,0.000119,2]
[361912957,1747887031916,-434.17558261,0.00011954,2]
[361912958,1747887031926,-555.58548044,0.00011973,2]
[361912959,1747887031935,-1802.688,0.0001199,2]
[361912960,1747887031944,-165.18801118,0.0001199,2]
[361912961,1747887031954,-318.673494,0.00011991,2]
[361912962,1747887031964,-5035.3405788,0.00011991,2]
[361912963,1747887031973,-409.9237891,0.00011991,2]
[361912964,1747887031983,-1770.23778591,0.00011991,2]
[361912965,1747887032033,-7398.54,0.00011991,2]
[361912966,1747887032108,-31475.09309349,0.00011991,2]
[361912967,1747887032117,-8667.0556574,0.00011991,2]
[361912968,1747887032127,-344.6337999,0.00011992,2]
[361912969,1747887032137,-370.5941057,0.00011992,2]
[361912970,1747887032147,-396.5544115,0.00011992,2]
[361912971,1747887032156,-5433.3435467,0.00011992,2]
[361912972,1747887032166,-5831.3465146,0.00011992,2]
[361912973,1747887032175,-6229.3494825,0.00011992,2]
[361912974,1747887032185,-439.9092245,0.00011992,2]
[361912975,1747887032195,-469.8946599,0.00011992,2]
[361912976,1747887032204,-499.8800954,0.00011992,2]
[361912977,1747887032221,-1558.45037096,0.00011992,2]
[361912984,1747887037423,-300.0,0.00011872,2]
[361912985,1747887037433,-1000.0,0.000119,2]
[361912986,1747887037443,-1338.50000001,0.00011991,2]
[361912987,1747887037476,-1683.85407419,0.00011991,2]
[361912988,1747887037485,-3266.40368058,0.00011992,2]
[361912989,1747887037496,-2615.92995068,0.00011992,2]
[361913171,1747887039626,-1649.47994671,0.00011992,2]
[361913179,1747887039698,-603.5631582,0.00011992,2]
[361913181,1747887039712,-658.25000001,0.00011992,2]
[361913192,1747887039842,-2000.0,0.00011992,2]
[361913194,1747887039855,-31402.30397636,0.00011992,2]
[361913196,1747887039865,-46864.8912876,0.00011992,2]
[361913198,1747887039875,-49975.4014916,0.00011992,2]
[361913199,1747887039886,-9360.0873216,0.00011992,2]
[361913201,1747887039895,-10053.1189859,0.00011992,2]
[361913203,1747887039905,-10746.1506502,0.00011992,2]
[361913204,1747887039915,-3264.026351,0.00011992,2]
[361913206,1747887039924,-3505.6986279,0.00011992,2]
[361913208,1747887039934,-3747.3709047,0.00011992,2]
[361913209,1747887039944,-116188.47272596,0.00012,2]
[361913211,1747887039954,-153686.93321197,0.00012,2]
[361913213,1747887039966,-4339645.94633383,0.00012,2]
[361913217,1747887040005,-1037.99999985,0.00012,2]
[361913225,1747887040108,-20167.77665698,0.00012,2]
[361913227,1747887040133,-2805.7206384,0.00012,2]
[361913454,1747887042620,-1300.0,0.00012,2]
[361913460,1747887042665,-3438.57175682,0.00012,2]
[361913462,1747887042677,-470.0000045,0.00012,2]
[361913490,1747887042941,-19626.76892549,0.00012,2]
[361913493,1747887042951,-6927.73107451,0.00012,2]
[361913519,1747887043193,-649.32987711,0.00012,2]
[361913532,1747887043310,-6384.83684999,0.00012,2]
[361913745,1747887045448,-3872.5484,0.000119,2]
[361913753,1747887045517,-431.22961645,0.000119,2]
[361913817,1747887046139,-4815.41717754,0.000119,2]
[361913831,1747887046258,-2649.37938423,0.000119,2]
[361913834,1747887046283,-600.75,0.000119,2]
[361913836,1747887046295,-595.78,0.000119,2]
[361913842,1747887046335,-40785.811048,0.000119,2]
[361913844,1747887046347,-15733.56979998,0.000119,2]
[361913848,1747887046498,-105075.80470413,0.000119,2]
[361914656,1747887086276,893.31,0.00011493,2]
[361914658,1747887133040,6000.0,0.00027397,120]
[361914659,1747887200630,200.0,0.00011401,2]
[361914660,1747887228599,953.93,0.00010886,2]
[361914661,1747887242138,162.95,0.00010886,2]
[361914662,1747887249990,250.0,0.00010884,2]
[361914663,1747887276207,200.06,0.00010884,2]
[361914664,1747887276534,200.06,0.00010938,2]
[361914665,1747887475284,197.0,0.000273,120]
[361914666,1747887487067,197.0,0.000273,120]
[361914667,1747887492115,206.0,0.0001065,2]
[361914668,1747887495201,175.21,0.00010886,2]
[361914669,1747887501068,3000.67,0.00010884,2]
[361914670,1747887547452,23900.0,0.00010887,2]
[361914671,1747887762773,166.1,0.00011191,2]
[361914672,1747887765416,856.96,8.947e-05,2]
[361914673,1747887765611,856.96,0.00011211,2]
[361914674,1747887802136,1500.0,0.00010865,2]
[361914675,1747887804964,200.0,0.00011121,2]
[361914677,1747887870803,1000.0,0.00010866,2]
[361914678,1747887904104,150.0,0.00010866,7]
[361914703,1747888045662,-162.00510444,0.000115,4]
[361914714,1747888160694,-137.99489556,0.000115,4]
[361914715,1747888160718,-200.0,0.00011503,2]
[361914716,1747888160741,-1857.0,0.00011506,2]
[361914717,1747888160762,-2751.0,0.00011507,2]
[361914718,1747888160784,-200.0,0.0001151,2]
[361914719,1747888160805,-250.0,0.00011513,2]
[361914720,1747888160827,-600.0,0.000116,4]
[361914721,1747888160848,-166.1,0.00011653,2]
[361914722,1747888160872,-900.0,0.000117,4]
[361914723,1747888160896,-852.39346816,0.0001173,2]
[361914724,1747888160920,-150.0,0.00011731,2]
[361914725,1747888160941,-207.4,0.00011736,2]
[361914726,1747888160962,-668.65185757,0.00011736,2]
[361914727,1747888160984,-150.0,0.00011739,2]
[361914728,1747888161007,-150.0,0.00011742,2]
[361914729,1747888161034,-150.0,0.00011742,2]
[361914730,1747888161056,-150.0,0.00011743,2]
[361914731,1747888161077,-1000.0,0.00011743,2]
[361914732,1747888161101,-150.0,0.00011744,2]
[361914733,1747888161123,-951.0,0.00011745,2]
[361914734,1747888161152,-150.0,0.00011746,2]
[361914735,1747888161180,-150.0,0.0001175,2]
[361914736,1747888161202,-1000.0,0.00011751,2]
[361914737,1747888161228,-150.0,0.00011755,2]
[361914738,1747888161251,-150.0,0.00011756,2]
[361914739,1747888161276,-150.0,0.00011757,2]
[361914740,1747888161299,-150.0,0.00011759,2]
[361914741,1747888161322,-150.0,0.0001176,2]
[361914742,1747888161343,-1000.0,0.0001176,2]
[361914743,1747888161366,-247.924126,0.0001176,2]
[361914744,1747888161389,-150.0,0.00011761,2]
[361914745,1747888161414,-150.0,0.00011761,2]
[361914746,1747888161437,-150.0,0.00011761,2]
[361914747,1747888161460,-150.0,0.00011762,2]
[361914748,1747888161483,-150.0,0.00011764,2]
[361914749,1747888161506,-150.0,0.00011766,2]
[361914750,1747888161527,-1000.0,0.00011768,2]
[361914751,1747888161550,-150.0,0.00011774,2]
[361914752,1747888161574,-150.0,0.00011774,2]
[361914753,1747888161596,-150.0,0.00011775,2]
[361914754,1747888161618,-1000.0,0.00011778,2]
[361914755,1747888161641,-150.0,0.00011779,2]
[361914756,1747888161666,-150.0,0.00011782,2]
[361914757,1747888161688,-150.0,0.00011784,2]
[361914758,1747888161711,-150.0,0.00011791,2]
[361914759,1747888161733,-150.0,0.00011792,2]
[361914760,1747888161755,-1000.0,0.00011796,2]
[361914761,1747888161776,-1000.0,0.000118,2]
[361914762,1747888161798,-14942.1175,0.000118,2]
[361914763,1747888161820,-1200.0,0.000118,4]
[361914764,1747888161842,-911.76587695,0.00011806,2]
[361914765,1747888161864,-150.0,0.00011811,2]
[361914766,1747888161886,-270.8734,0.00011817,2]
[361914767,1747888161909,-317.87,0.00011817,2]
[361914768,1747888161932,-150.0,0.00011818,2]
[361914769,1747888161955,-150.0,0.00011823,2]
[361914770,1747888161978,-150.0,0.00011825,2]
[361914771,1747888162000,-150.0,0.00011825,2]
[361914772,1747888162025,-1000.0,0.00011832,2]
[361914773,1747888162049,-1032.21037616,0.00011835,2]
[361914774,1747888162072,-150.0,0.00011836,2]
[361914775,1747888162098,-150.0,0.00011841,2]
[361914776,1747888162125,-150.0,0.00011841,2]
[361914777,1747888162148,-150.0,0.00011846,2]
[361914778,1747888162171,-150.0,0.00011848,2]
[361914779,1747888162194,-150.0,0.00011849,2]
[361914780,1747888162214,-1000.0,0.00011849,2]
[361914781,1747888162236,-150.0,0.00011851,2]
[361914782,1747888162258,-150.0,0.00011854,2]
[361914783,1747888162280,-150.0,0.00011854,2]
[361914784,1747888162301,-1000.0,0.0001186,2]
[361914785,1747888162324,-150.0,0.00011864,2]
[361914786,1747888162346,-150.0,0.00011864,2]
[361914787,1747888162367,-150.0,0.00011865,2]
[361914788,1747888162390,-150.0,0.00011868,2]
[361914789,1747888162413,-150.0,0.00011868,2]
[361914790,1747888162437,-150.0,0.00011868,2]
[361914791,1747888162459,-154.40295243,0.0001187,2]
[361914792,1747888162481,-208.38191029,0.00011873,2]
[361914793,1747888162502,-500.0,0.00011873,2]
[361914794,1747888162523,-500.29438891,0.00011873,2]
[361914795,1747888162545,-1284.0,0.00011874,2]
[361914796,1747888162567,-1508.2111,0.00011874,2]
[361914797,1747888162588,-2907.7233,0.00011874,2]
[361914798,1747888162612,-150.0,0.00011876,2]
[361914799,1747888162644,-150.0,0.00011878,2]
[361914800,1747888162666,-150.0,0.0001188,2]
[361914801,1747888162689,-150.0,0.00011884,2]
[361914802,1747888162713,-150.0,0.00011885,2]
[361914803,1747888162736,-150.0,0.00011889,2]
[361914804,1747888162757,-1313.0402,0.00011891,2]
[361914805,1747888162778,-500.0,0.00011891,2]
[361914806,1747888162800,-8816.61683583,0.00011891,2]
[361914807,1747888163140,-381.0,0.00011893,2]
[361914808,1747888163165,-8816.61683583,0.00011895,2]
[361914809,1747888163188,-150.0,0.00011898,2]
[361914810,1747888163210,-8816.61683583,0.00011899,2]
[361914811,1747888163232,-32392.82256967,0.000119,2]
[361914812,1747888163253,-197.0,0.000119,4]
[361914813,1747888163277,-195.92,0.000119,4]
[361914814,1747888163299,-1500.0,0.000119,4]
[361914815,1747888163320,-10538.35524351,0.000119,2]
[361914816,1747888163340,-2500.0,0.000119,2]
[361914817,1747888163362,-4295.6963273,0.00011903,2]
[361914818,1747888209440,900.0,0.000114,4]
[361914819,1747888211657,206.0,0.00011118,2]
[361914828,1747888231711,-1800.0,0.000115,4]
[361914829,1747888231722,-87.75776494,0.000116,4]
[361914864,1747888236342,1180.28,0.00010949,2]
[361915049,1747888239923,-2612.24223506,0.000116,4]
[361915052,1747888239933,-3600.0,0.000117,4]
[361915054,1747888239944,-4600.0,0.000118,4]
[361915056,1747888239954,-317.87,0.00011817,2]
[361915058,1747888239966,-200.0,0.00011817,2]
[361915060,1747888239976,-392.0,0.00011817,2]
[361915062,1747888239986,-1958.0,0.000119,2]
[361915064,1747888239995,-500.0,0.000119,2]
[361915066,1747888240005,-163.50567522,0.000119,2]
[361915068,1747888240015,-1000.0,0.000119,2]
[361915070,1747888240025,-206953.1127,0.000119,2]
[361915072,1747888240036,-900.0,0.000119,4]
[361915074,1747888240047,-329.04675812,0.000119,2]
[361915076,1747888240056,-300.0,0.00011902,2]
[361915078,1747888240067,-4520.92050853,0.00011903,2]
[361915080,1747888240079,-332.52711366,0.00011906,2]
[361915082,1747888240089,-8816.61683583,0.00011907,2]
[361915084,1747888240098,-1000.0,0.00011908,2]
[361915086,1747888240108,-150.0,0.0001191,2]
[361915136,1747888240604,-1000.0,0.0001191,2]
[361915140,1747888240631,-8816.61683583,0.0001191,2]
[361915142,1747888240640,-150.0,0.00011912,2]
[361915144,1747888240650,-150.0,0.00011912,2]
[361915146,1747888240659,-150.0,0.00011914,2]
[361915148,1747888240669,-8816.61683583,0.00011914,2]
[361915150,1747888240679,-8816.61683583,0.00011918,2]
[361915152,1747888240689,-8816.61683583,0.00011922,2]
[361915154,1747888240699,-256.2428516,0.00011926,2]
[361915156,1747888240709,-8816.61683583,0.00011926,2]
[361915158,1747888240719,-150.0,0.00011927,2]
[361915160,1747888240729,-150.0,0.0001193,2]
[361915162,1747888240738,-150.0,0.00011935,2]
[361915164,1747888240748,-150.0,0.0001194,2]
[361915166,1747888240757,-150.0,0.00011942,2]
[361915168,1747888240766,-150.0,0.00011942,2]
[361915170,1747888240776,-150.0,0.00011946,2]
[361915172,1747888240786,-150.0,0.0001195,2]
[361915174,1747888240802,-150.0,0.00011952,2]
[361915176,1747888240812,-150.0,0.00011955,2]
[361915178,1747888240822,-150.0,0.00011955,2]
[361915181,1747888240831,-150.0,0.00011955,2]
[361915182,1747888240841,-150.0,0.00011956,2]
[361915184,1747888240850,-150.0,0.00011956,2]
[361915186,1747888240860,-150.0,0.00011958,2]
[361915189,1747888240870,-150.0,0.00011961,2]
[361915191,1747888240879,-150.0,0.00011968,2]
[361915193,1747888240888,-150.0,0.00011969,2]
[361915195,1747888240898,-150.0,0.00011972,2]
[361915197,1747888240909,-500.0,0.00011973,2]
[361915199,1747888240919,-500.0,0.00011973,2]
[361915200,1747888240930,-500.0,0.00011973,2]
[361915203,1747888240940,-500.95769355,0.00011973,2]
[361915205,1747888240951,-503.26418179,0.00011973,2]
[361915206,1747888240962,-481.99062439,0.00011973,2]
[361915208,1747888240971,-500.0,0.00011973,2]
[361915210,1747888240981,-13893.82674957,0.00011974,2]
[361915212,1747888240990,-150.0,0.00011976,2]
[361915214,1747888241000,-1000.0,0.00011977,2]
[361915216,1747888241009,-150.0,0.00011983,2]
[361915219,1747888241019,-150.0,0.00011986,2]
[361915221,1747888241030,-150.0,0.00011988,2]
[361915223,1747888241044,-150.0,0.00011988,2]
[361915225,1747888241053,-150.0,0.00011989,2]
[361915227,1747888241062,-159.15333333,0.0001199,2]
[361915229,1747888241073,-159.15333333,0.0001199,2]
[361915231,1747888241082,-159.15333333,0.0001199,2]
[361915233,1747888241091,-2179.6245503,0.00011991,2]
[361915235,1747888241101,-6779.4088069,0.00011991,2]
[361915237,1747888241110,-5452.7445121,0.00011991,2]
[361915239,1747888241120,-147625.5236813,0.00011991,2]
[361915241,1747888241130,-150.0,0.00011992,2]
[361915243,1747888241139,-6779.4088069,0.00011992,2]
[361915245,1747888241149,-6779.4088069,0.00011992,2]
[361915247,1747888241159,-6779.4088069,0.00011992,2]
[361915249,1747888241168,-6779.4088069,0.00011992,2]
[361915251,1747888241178,-5463.7048026,0.00011992,2]
[361915253,1747888241187,-5474.6650931,0.00011992,2]
[361915255,1747888241197,-5485.6253836,0.00011992,2]
[361915257,1747888241206,-5496.585674,0.00011992,2]
[361915259,1747888241215,-147922.2584022,0.00011992,2]
[361915261,1747888241225,-148218.9931232,0.00011992,2]
[361915263,1747888241235,-148515.7278442,0.00011992,2]
[361915265,1747888241244,-148812.4625651,0.00011992,2]
[361915267,1747888241254,-150.0,0.00011993,2]
[361915269,1747888241264,-150.0,0.00011996,2]
[361915271,1747888241274,-150.0,0.00011997,2]
[361915273,1747888241284,-150.0,0.00011997,2]
[361915275,1747888241293,-1000.0,0.00011998,2]
[361915277,1747888241303,-150.0,0.00011999,2]
[361915279,1747888241313,-500.0,0.00011999,2]
[361915281,1747888241322,-150.0,0.00011999,2]
[361915283,1747888241331,-159.2014809,0.00011999,2]
[361915285,1747888241341,-150.0,0.00011999,2]
[361915287,1747888241350,-500.0,0.00011999,2]
[361915289,1747888241360,-500.0,0.00011999,2]
[361915291,1747888241369,-500.0,0.00011999,2]
[361915293,1747888241379,-500.0,0.00011999,2]
[361915295,1747888241389,-500.0,0.00011999,2]
[361915297,1747888241398,-480.51284422,0.00011999,2]
[361915299,1747888241408,-500.0,0.00011999,2]
[361915301,1747888241418,-500.0,0.00011999,2]
[361915303,1747888241427,-500.0,0.00011999,2]
[361915305,1747888241437,-500.0,0.00011999,2]
[361915307,1747888241446,-123057.91329274,0.00012,2]
[361915309,1747888241456,-133214.61290564,0.00012,2]
[361915311,1747888241466,-209.14539232,0.00012,2]
[361915313,1747888241478,-242.514026,0.00012,2]
[361915315,1747888241488,-184.787888,0.00012,2]
[361915317,1747888241497,-151.0,0.00012,2]
[361915319,1747888241507,-153.84225,0.00012,2]
[361915321,1747888241516,-3620685.74491148,0.00012,2]
[361915325,1747888241543,-55543.07436588,0.00012,2]
[361915337,1747888241643,-4601.15,0.00012,2]
[361915406,1747888242421,203.0,0.00011118,2]
[361915470,1747888243061,-266.36560729,0.00011991,2]
[361915472,1747888243071,-20018.68198205,0.00012,2]
[361915475,1747888243087,-453.8784,0.00012,2]
[361915491,1747888243232,-942.316296,0.00012,2]
[361915496,1747888243278,-562.6023957,0.00012,2]
[361915518,1747888243482,-487.56657857,0.00012,2]
[361915645,1747888244683,-1000.52065593,0.00012,2]
[361915776,1747888246508,-1628.73485135,0.00012,2]
[361915780,1747888246538,-841677.00705339,0.00012,2]
[361915795,1747888246725,-13333.55929434,0.00012,2]
[361915796,1747888246778,-3342.1,0.00012,2]
[361915874,1747888375299,372.84,0.00011128,2]
[361915875,1747888489945,200.0,0.00011333,2]
[361915876,1747888540819,153.96,0.00011147,2]
[361915877,1747888541033,153.96,0.00011158,2]
[361915878,1747888541232,153.96,0.00011169,2]
[361915879,1747888541528,153.96,0.0001118,2]
[361915880,1747888541648,153.96,0.00011192,2]
[361915881,1747888542046,152.65498384,0.00011203,2]
[361915882,1747888542070,1.30501616,0.00011203,2]
[361915883,1747888542819,-860.616182,0.00011671,2]
[361915884,1747888542842,-200.0,0.0001173,2]
[361915885,1747888542864,-364.412766,0.0001176,2]
[361915886,1747888542887,-317.87,0.00011817,2]
[361915887,1747888542909,-1000.0,0.00011822,2]
[361915888,1747888542933,-1200.0,0.00011872,2]
[361915889,1747888542955,-500.0,0.00011873,2]
[361915890,1747888542978,-300.0,0.0001189,2]
[361915891,1747888543005,-257.101052,0.0001189,2]
[361915892,1747888586246,-327.971489,0.0001176,2]
[361915893,1747888586267,-317.87,0.00011791,2]
[361915894,1747888586291,-42.898948,0.0001189,2]
[361915895,1747888586313,-11811.259563,0.00011891,2]
[361915896,1747888586810,23900.0,0.00011305,2]
[361915897,1747888650001,175.21,0.00011349,2]
[361915898,1747888719409,150.0,0.00012,5]
[361915899,1747888720707,867.99,0.00011206,2]
[361915900,1747888776681,178.2,0.00011194,2]
[361915901,1747888790189,795.15,9.276e-05,2]
[361915903,1747888908715,1000.0,0.00011169,2]
[361915911,1747889094203,-214.15741439,0.00011507,2]
[361915912,1747889097977,-214.26258561,0.00011507,2]
[361915913,1747889229280,-211.25783763,0.00011507,2]
[361915947,1747889291972,206.0,0.0001069,2]
[361915948,1747889335965,250.0,0.00011033,2]
[361915949,1747889340537,150.0,0.00011033,7]
[361915950,1747889354953,-2111.32216237,0.00011507,2]
[361915951,1747889354980,-200.0,0.00011515,2]
[361915952,1747889355007,-250.0,0.00011523,2]
[361915953,1747889355033,-795.15,0.0001154,2]
[361915954,1747889355058,-200.0,0.000117,4]
[361915955,1747889355083,-211.257837,0.0001176,2]
[361915956,1747889355109,-500.0,0.000118,4]
[361915957,1747889355133,-207.4,0.00011884,2]
[361915958,1747889355158,-1000.0,0.0001189,2]
[361915959,1747889355182,-1152.0,0.0001189,2]
[361915960,1747889355206,-144134.561337,0.00011891,2]
[361915961,1747889355230,-1000.0,0.00011892,2]
[361915962,1747889355255,-2500.0,0.00011892,2]
[361915963,1747889355280,-500.0,0.000119,2]
[361915964,1747889355306,-5000.0,0.000119,2]
[361915965,1747889355332,-152.02307151,0.000119,2]
[361915966,1747889355359,-152.02025273,0.000119,2]
[361915967,1747889355385,-800.0,0.000119,4]
[361915968,1747889355410,-250.81260565,0.000119,2]
[361915969,1747889355434,-200.0,0.00011904,2]
[361915970,1747889355460,-175.21,0.00011916,2]
[361915971,1747889355486,-500.0,0.00011973,2]